fUST/lending_fUST_20250506
["ID","MTS","AMOUNT","RATE_DAILY","PERIOD"]
[360002906,1746475756162,-500.0,0.00022724,2]
[360002907,1746475756188,-500.0,0.00022724,2]
[360002908,1746475756215,-500.0,0.00022724,2]
[360002909,1746475756241,-500.0,0.00022724,2]
[360002910,1746475756267,-500.0,0.00022724,2]
[360002911,1746475756292,-500.0,0.00022724,2]
[360002912,1746475756319,-500.0,0.00022724,2]
[360002913,1746475756346,-500.0,0.00022724,2]
[360002914,1746475756373,-500.0,0.00022724,2]
[360002915,1746475756400,-500.0,0.00022724,2]
[360002916,1746475756426,-500.0,0.00022724,2]
[360002917,1746475756452,-500.0,0.00022724,2]
[360002918,1746475756478,-500.0,0.00022724,2]
[360002919,1746475756503,-500.0,0.00022724,2]
[360002920,1746475756530,-500.0,0.00022724,2]
[360002921,1746475756557,-500.0,0.00022724,2]
[360002922,1746475756583,-500.0,0.00022724,2]
[360002923,1746475756609,-500.0,0.00022724,2]
[360002924,1746475756637,-500.0,0.00022724,2]
[360002925,1746475756663,-500.0,0.00022724,2]
[360002926,1746475756689,-500.0,0.00022724,2]
[360002927,1746475756716,-500.0,0.00022724,2]
[360002928,1746475756742,-500.0,0.00022724,2]
[360002929,1746475756774,-634.14909614,0.00022724,2]
[360002930,1746475756800,-500.0,0.00022724,2]
[360002931,1746475756827,-500.0,0.00022724,2]
[360002932,1746475756855,-500.0,0.00022724,2]
[360002933,1746475756882,-500.0,0.00022724,2]
[360002934,1746475756909,-500.0,0.00022724,2]
[360002935,1746475756937,-500.0,0.00022724,2]
[360002936,1746475756964,-500.0,0.00022724,2]
[360002937,1746475756990,-500.0,0.00022724,2]
[360002938,1746475757016,-500.0,0.00022724,2]
[360002939,1746475757042,-500.0,0.00022724,2]
[360002940,1746475757070,-500.0,0.00022724,2]
[360002941,1746475757097,-500.0,0.00022724,2]
[360002942,1746475757123,-500.0,0.00022724,2]
[360002943,1746475757150,-500.0,0.00022724,2]
[360002944,1746475757176,-500.0,0.00022724,2]
[360002945,1746475757202,-500.0,0.00022724,2]
[360002946,1746475757230,-500.0,0.00022724,2]
[360002947,1746475757256,-500.0,0.00022724,2]
[360002948,1746475757282,-500.0,0.00022724,2]
[360002949,1746475757308,-500.0,0.00022724,2]
[360002950,1746475757335,-500.0,0.00022724,2]
[360002951,1746475757362,-500.0,0.00022724,2]
[360002952,1746475757388,-500.0,0.00022724,2]
[360002953,1746475757414,-500.0,0.00022724,2]
[360002954,1746475757440,-413.41490961,0.00022724,2]
[360002955,1746475757466,-500.0,0.00022724,2]
[360002956,1746475757492,-500.0,0.00022724,2]
[360002957,1746475757518,-500.0,0.00022724,2]
[360002958,1746475757544,-500.0,0.00022724,2]
[360002959,1746475757570,-500.0,0.00022724,2]
[360002960,1746475757596,-500.0,0.00022724,2]
[360002961,1746475757622,-500.0,0.00022724,2]
[360002962,1746475757649,-132.64233568,0.00022724,2]
[360002963,1746475769150,-749.15223663,0.00022624,2]
[360002964,1746475769180,-367.35766432,0.00022724,2]
[360002965,1746475769208,-500.0,0.00022724,2]
[360002966,1746475769235,-500.0,0.00022724,2]
[360002967,1746475769262,-321.13562417,0.00022724,2]
[360002968,1746475773087,-178.86437583,0.00022724,2]
[360002969,1746475773115,-500.0,0.00022724,2]
[360002970,1746475773142,-500.0,0.00022724,2]
[360002971,1746475773163,-46512.47295467,0.00022724,2]
[360002972,1746475789359,-249.9140607,0.00020624,2]
[360002973,1746475793494,-288.41817024,0.00020624,2]
[360002974,1746475802129,-172.83313153,0.00020624,2]
[360002975,1746475807457,-46.0934817,0.00020624,2]
[360003020,1746475832683,-300.0,0.00022722,2]
[360003022,1746475832693,-214.94436304,0.00022723,2]
[360003024,1746475832705,-285.05563696,0.00022723,2]
[360003027,1746475832715,-326.42068662,0.00022723,2]
[360003028,1746475832724,-324.85447507,0.00022723,2]
[360003030,1746475832733,-360.66920135,0.00022723,2]
[360003072,1746475838573,-300.0,0.00022724,2]
[360003073,1746475838584,-700.0,0.00022724,2]
[360003074,1746475838594,-500.0,0.00022726,2]
[360003075,1746475838604,-500.0,0.00022726,2]
[360003076,1746475838613,-500.0,0.00022726,2]
[360003077,1746475838623,-500.0,0.00022726,2]
[360003078,1746475838633,-500.0,0.00022726,2]
[360003079,1746475838643,-611.34149096,0.00022726,2]
[360003080,1746475838653,-515.24715074,0.00022726,2]
[360003081,1746475838663,-24900.0,0.00022727,2]
[360003082,1746475838673,-500.0,0.000228,2]
[360003084,1746475838683,-500.0,0.000228,2]
[360003086,1746475838693,-500.0,0.000228,2]
[360003088,1746475838703,-500.0,0.000228,2]
[360003090,1746475838713,-500.0,0.000228,2]
[360003093,1746475838723,-500.0,0.000228,2]
[360003095,1746475838734,-250.0,0.00022856,2]
[360003097,1746475838744,-1779.9970835,0.00022905,2]
[360003099,1746475838754,-151.0,0.000233,10]
[360003101,1746475838764,-321.72428169,0.00023319,2]
[360003103,1746475838777,-1000.0,0.00023419,2]
[360003105,1746475838786,-5377.90250943,0.00023419,2]
[360003108,1746475838796,-1464.0686977,0.00023519,2]
[360003110,1746475838807,-250.0,0.00023811,2]
[360003114,1746475838816,-200.13432905,0.00023811,2]
[360003117,1746475838826,-192.5260387,0.00023901,2]
[360003119,1746475838835,-279.4705777,0.00023901,2]
[360003121,1746475838848,-827.854122,0.00023901,2]
[360003123,1746475838857,-10000.0,0.00023901,2]
[360003125,1746475838867,-192.560904,0.00023901,2]
[360003127,1746475838878,-5338.98671381,0.00023998,2]
[360003130,1746475838888,-534.07264711,0.00024,2]
[360003132,1746475838898,-500.0,0.00024,2]
[360003134,1746475838908,-151.0,0.000243,10]
[360003136,1746475838918,-420.0,0.00024673,2]
[360003138,1746475838928,-420.0,0.00024675,2]
[360003140,1746475838939,-595.43622376,0.00024799,2]
[360003142,1746475838949,-500.0,0.00024799,2]
[360003143,1746475838959,-251.21191238,0.00024799,2]
[360003145,1746475838968,-500.0,0.00024799,2]
[360003147,1746475838978,-383.9708055,0.00024799,2]
[360003148,1746475838988,-2236.9962515,0.000248,2]
[360003149,1746475838998,-749.15223658,0.00024878,2]
[360003150,1746475839008,-4748.19510498,0.000249,2]
[360003151,1746475839018,-151.0,0.000252,20]
[360003152,1746475839027,-454.70531253,0.000254,13]
[360003153,1746475839037,-454.70531232,0.000254,13]
[360003154,1746475839046,-454.70531232,0.000254,13]
[360003155,1746475839056,-454.70531232,0.00025555,13]
[360003156,1746475839066,-757.25884417,0.00025624,2]
[360003157,1746475839076,-238.0723156,0.00026,30]
[360003158,1746475839089,-151.0,0.000261,20]
[360003159,1746475839099,-454.70531232,0.00026107,14]
[360003160,1746475839109,-454.70531232,0.00026659,15]
[360003161,1746475839119,-587.0,0.00026794,2]
[360003162,1746475839130,-151.0,0.000271,13]
[360003163,1746475839140,-749.15223658,0.00027131,2]
[360003164,1746475839150,-454.70531232,0.0002721,16]
[360003165,1746475839160,-160.0,0.00027336,2]
[360003166,1746475839170,-160.0,0.00027336,2]
[360003167,1746475839180,-649.3025594,0.00027397,5]
[360003168,1746475839190,-421.83547488,0.00027572,2]
[360003169,1746475839200,-841.77443764,0.00027572,2]
[360003170,1746475839209,-182.23035355,0.00027572,2]
[360003171,1746475839220,-160.0,0.00027572,2]
[360003172,1746475839229,-160.0,0.00027572,2]
[360003173,1746475839239,-160.0,0.00027572,2]
[360003174,1746475839249,-160.0,0.00027579,2]
[360003175,1746475839259,-454.70531232,0.00027762,17]
[360003176,1746475839269,-151.0,0.00028,17]
[360003177,1746475839279,-1000.0,0.00028279,5]
[360003178,1746475839290,-1000.0,0.00028279,5]
[360003179,1746475839300,-1000.0,0.00028279,5]
[360003180,1746475839310,-1000.0,0.00028279,5]
[360003181,1746475839320,-454.70531232,0.00028314,18]
[360003182,1746475839331,-500.0,0.0002845,5]
[360003183,1746475839342,-454.70531232,0.00028866,19]
[360003184,1746475839352,-151.0,0.000289,17]
[360003185,1746475839363,-823.0,0.00029094,2]
[360003186,1746475839372,-749.15223658,0.00029385,2]
[360003187,1746475839383,-454.70531232,0.00029417,21]
[360003188,1746475839392,-2374.09755249,0.00029469,2]
[360003189,1746475839401,-1118.49812575,0.00029469,2]
[360003190,1746475839411,-1000.0,0.00029479,5]
[360003191,1746475839420,-151.0,0.000299,17]
[360003192,1746475839430,-454.70531232,0.00029969,22]
[360003193,1746475839440,-157.64,0.0003,2]
[360003194,1746475839450,-454.70531232,0.00030521,23]
[360003195,1746475839459,-757.25884417,0.00030624,2]
[360003196,1746475839469,-192.560904,0.0003075,2]
[360003197,1746475839478,-179.58695001,0.00030769,6]
[360003198,1746475839487,-151.0,0.000308,19]
[360003199,1746475839495,-454.70531232,0.00031072,24]
[360003200,1746475839504,-1464.7374329,0.00031232,4]
[360003201,1746475839514,-500.0,0.00031233,2]
[360003202,1746475839523,-1152.0,0.00031592,2]
[360003203,1746475839531,-186.166,0.00031601,29]
[360003204,1746475839540,-454.70531232,0.00031624,25]
[360003205,1746475839548,-749.15223658,0.00031639,2]
[360003206,1746475839558,-151.0,0.000317,14]
[360003207,1746475839567,-3813.0,0.00032,2]
[360003208,1746475839577,-454.70531232,0.00032176,26]
[360003209,1746475839586,-1000.0,0.00032329,2]
[360003210,1746475839596,-589.95392832,0.00032447,2]
[360003211,1746475839606,-589.95392829,0.00032477,2]
[360003212,1746475839616,-589.95392829,0.00032507,2]
[360003213,1746475839626,-2374.09755249,0.00032527,2]
[360003214,1746475839636,-1118.49812575,0.00032527,2]
[360003215,1746475839646,-589.95392829,0.00032536,2]
[360003216,1746475839656,-11870.4877625,0.00032537,2]
[360003217,1746475839667,-5592.49062875,0.00032537,2]
[360003218,1746475839676,-257465.00290959,0.00032547,2]
[360003219,1746475839687,-589.95392829,0.00032566,2]
[360003220,1746475839697,-2374.09755249,0.00032646,2]
[360003221,1746475839707,-1118.49812575,0.00032646,2]
[360003222,1746475839718,-14244.5853149,0.00032655,2]
[360003223,1746475839727,-6710.9887545,0.00032655,2]
[360003224,1746475839737,-9496.39020996,0.00032656,2]
[360003225,1746475839747,-4473.992503,0.00032656,2]
[360003226,1746475839757,-421.83547488,0.00032665,3]
[360003227,1746475839769,-182.23035355,0.00032665,3]
[360003228,1746475839784,-841.77443764,0.00032665,3]
[360003229,1746475839794,-12607.13495863,0.00032665,3]
[360003230,1746475839804,-160.0,0.00032665,3]
[360003231,1746475839814,-160.0,0.00032665,3]
[360003232,1746475839823,-160.0,0.00032665,3]
[360003233,1746475839832,-236070.43512603,0.00032665,2]
[360003234,1746475839842,-52544.64936385,0.00032665,3]
[360003235,1746475839853,-370000.0,0.00032666,2]
[360003236,1746475839863,-151.0,0.00032666,7]
[360003237,1746475839875,-151.0,0.00032666,7]
[360003238,1746475839884,-152.155241,0.00032666,7]
[360003239,1746475839894,-158.440634,0.00032666,7]
[360003240,1746475839904,-158.440634,0.00032666,7]
[360003241,1746475839914,-151.0,0.00032666,7]
[360003242,1746475839924,-151.0,0.00032666,7]
[360003243,1746475839934,-151.0,0.00032666,7]
[360003244,1746475839943,-151.0,0.00032666,7]
[360003245,1746475839954,-151.0,0.00032666,7]
[360003246,1746475839964,-151.0,0.00032666,7]
[360003247,1746475839974,-500.0,0.00032673,5]
[360003248,1746475839984,-500.0,0.00032673,5]
[360003249,1746475839994,-500.0,0.00032673,5]
[360003250,1746475840004,-454.70531232,0.00032728,27]
[360003251,1746475840014,-157.6354191,0.0003274,30]
[360003252,1746475840023,-153.0,0.0003274,30]
[360003253,1746475840033,-317.3075416,0.0003274,30]
[360003254,1746475840043,-157.6354191,0.0003274,30]
[360003255,1746475840052,-153.0,0.0003274,30]
[360003256,1746475840062,-153.0,0.0003274,30]
[360003257,1746475840071,-157.6354191,0.0003274,30]
[360003258,1746475840080,-2200.0,0.0003276,120]
[360003259,1746475840090,-524.96099,0.00032776,120]
[360003260,1746475840099,-200.00935554,0.00032798,7]
[360003261,1746475840108,-160.0,0.000328,40]
[360003262,1746475840118,-1246.67708666,0.00032818,2]
[360003263,1746475840128,-800.0,0.00032865,2]
[360003264,1746475840137,-500.0,0.00032873,5]
[360003265,1746475840146,-500.0,0.00032873,5]
[360003266,1746475840155,-500.0,0.00032873,5]
[360003267,1746475840165,-500.0,0.00032873,5]
[360003268,1746475840175,-500.0,0.00032873,5]
[360003269,1746475840185,-236.47896105,0.00032873,5]
[360003271,1746475840194,-541.37227278,0.00032873,5]
[360003272,1746475840204,-500.0,0.00032873,5]
[360003273,1746475840214,-500.0,0.00032873,5]
[360003274,1746475840224,-150.0,0.00032873,5]
[360003275,1746475840234,-500.46667952,0.00032873,5]
[360003276,1746475840244,-500.0,0.00032873,5]
[360003277,1746475840254,-500.0,0.00032873,5]
[360003278,1746475840263,-500.0,0.00032873,5]
[360003280,1746475840272,-500.0,0.00032873,5]
[360003281,1746475840281,-500.0,0.00032873,5]
[360003282,1746475840291,-500.0,0.00032873,5]
[360003283,1746475840300,-534.8614574,0.00032873,5]
[360003284,1746475840310,-500.0,0.00032873,5]
[360003285,1746475840319,-614.95006914,0.00032873,5]
[360003286,1746475840329,-500.0,0.00032873,5]
[360003287,1746475840339,-501.97098283,0.00032873,5]
[360003288,1746475840348,-500.0,0.00032873,5]
[360003289,1746475840357,-218.05921073,0.00032873,5]
[360003290,1746475840367,-407.41112909,0.00032873,3]
[360003291,1746475840377,-151.0,0.00032876,2]
[360003292,1746475840387,-151.0,0.00032876,7]
[360003293,1746475840398,-151.0,0.00032876,7]
[360003295,1746475840407,-151.0,0.00032876,7]
[360003297,1746475840417,-153.790371,0.00032876,7]
[360003299,1746475840426,-384.909112,0.00032876,7]
[360003301,1746475840435,-384.909112,0.00032876,7]
[360003303,1746475840445,-384.909112,0.00032876,7]
[360003305,1746475840454,-384.909112,0.00032876,7]
[360003307,1746475840464,-213.755846,0.00032876,7]
[360003309,1746475840473,-401.07692146,0.00032876,8]
[360003311,1746475840483,-388.713188,0.00032876,7]
[360003313,1746475840492,-388.713188,0.00032876,7]
[360003315,1746475840502,-388.713188,0.00032876,7]
[360003317,1746475840511,-388.713188,0.00032876,7]
[360003319,1746475840520,-400.0,0.00032876,8]
[360003321,1746475840529,-510.86268837,0.00032876,8]
[360003323,1746475840539,-959.74,0.00032876,8]
[360003325,1746475840549,-400.0,0.00032876,8]
[360003327,1746475840558,-400.0,0.00032876,8]
[360003329,1746475840568,-400.0,0.00032876,8]
[360003331,1746475840577,-1948.25,0.00032876,8]
[360003333,1746475840586,-316.26635777,0.00032876,8]
[360003335,1746475840595,-400.0,0.00032876,8]
[360003337,1746475840605,-400.0,0.00032876,8]
[360003339,1746475840614,-400.0,0.00032876,8]
[360003341,1746475840623,-400.0,0.00032876,8]
[360003343,1746475840633,-400.0,0.00032876,8]
[360003345,1746475840643,-417.91,0.00032876,8]
[360003348,1746475840652,-400.0,0.00032876,8]
[360003350,1746475840661,-400.0,0.00032876,8]
[360003352,1746475840670,-478.9441987,0.00032876,8]
[360003354,1746475840679,-400.0,0.00032876,8]
[360003356,1746475840689,-400.0,0.00032876,8]
[360003358,1746475840698,-400.0,0.00032876,8]
[360003360,1746475840707,-400.0,0.00032876,8]
[360003362,1746475840716,-400.0,0.00032876,8]
[360003364,1746475840725,-454.2,0.00032876,8]
[360003366,1746475840734,-400.0,0.00032876,8]
[360003368,1746475840743,-400.0,0.00032876,8]
[360003370,1746475840753,-400.0,0.00032876,8]
[360003372,1746475840762,-400.0,0.00032876,8]
[360003374,1746475840775,-1304.84,0.00032876,8]
[360003377,1746475840784,-505.28799801,0.00032876,8]
[360003379,1746475840793,-400.0,0.00032876,8]
[360003381,1746475840802,-400.0,0.00032876,8]
[360003383,1746475840813,-400.0,0.00032876,8]
[360003385,1746475840825,-585.33,0.00032876,8]
[360003387,1746475840834,-400.0,0.00032876,8]
[360003389,1746475840843,-500.0,0.00032876,8]
[360003391,1746475840853,-400.0,0.00032876,8]
[360003393,1746475840863,-400.0,0.00032876,8]
[360003395,1746475840873,-1000.0,0.00032876,8]
[360003397,1746475840883,-400.0,0.00032876,8]
[360003399,1746475840892,-400.0,0.00032876,8]
[360003401,1746475840902,-400.0,0.00032876,8]
[360003403,1746475840911,-400.0,0.00032876,8]
[360003405,1746475840921,-400.0,0.00032876,8]
[360003407,1746475840931,-400.0,0.00032876,8]
[360003409,1746475840940,-400.0,0.00032876,8]
[360003411,1746475840950,-400.0,0.00032876,8]
[360003413,1746475840959,-475.6,0.00032876,8]
[360003415,1746475840968,-400.0,0.00032876,8]
[360003417,1746475840977,-400.0,0.00032876,8]
[360003419,1746475840988,-400.0,0.00032876,8]
[360003421,1746475840997,-400.0,0.00032876,8]
[360003423,1746475841006,-400.0,0.00032876,8]
[360003425,1746475841015,-521.96,0.00032876,8]
[360003427,1746475841025,-400.0,0.00032876,8]
[360003429,1746475841034,-400.0,0.00032876,8]
[360003431,1746475841043,-400.0,0.00032876,8]
[360003433,1746475841053,-400.0,0.00032876,8]
[360003435,1746475841062,-400.0,0.00032876,8]
[360003437,1746475841072,-400.0,0.00032876,8]
[360003439,1746475841081,-400.0,0.00032876,8]
[360003441,1746475841091,-302.44081303,0.00032876,8]
[360003443,1746475841100,-400.0,0.00032876,8]
[360003445,1746475841110,-400.0,0.00032876,8]
[360003447,1746475841119,-400.0,0.00032876,8]
[360003449,1746475841129,-400.0,0.00032876,8]
[360003451,1746475841138,-400.0,0.00032876,8]
[360003453,1746475841147,-400.0,0.00032876,8]
[360003455,1746475841156,-400.0,0.00032876,8]
[360003457,1746475841166,-404.02571464,0.00032876,8]
[360003459,1746475841175,-500.26,0.00032876,8]
[360003461,1746475841185,-400.0,0.00032876,8]
[360003464,1746475841195,-400.0,0.00032876,8]
[360003465,1746475841204,-400.0,0.00032876,8]
[360003468,1746475841214,-400.0,0.00032876,8]
[360003469,1746475841223,-400.0,0.00032876,8]
[360003472,1746475841232,-472.78,0.00032876,8]
[360003474,1746475841242,-400.0,0.00032876,8]
[360003476,1746475841251,-400.0,0.00032876,8]
[360003478,1746475841261,-716.38,0.00032876,8]
[360003480,1746475841271,-500.0,0.00032876,14]
[360003482,1746475841280,-400.0,0.00032876,8]
[360003484,1746475841290,-400.0,0.00032876,2]
[360003486,1746475841299,-400.0,0.00032876,8]
[360003488,1746475841308,-400.0,0.00032876,8]
[360003490,1746475841317,-400.0,0.00032876,8]
[360003492,1746475841327,-400.0,0.00032876,2]
[360003494,1746475841336,-400.0,0.00032876,8]
[360003496,1746475841346,-400.0,0.00032876,8]
[360003498,1746475841355,-583.04,0.00032876,8]
[360003500,1746475841367,-686.12,0.00032876,8]
[360003502,1746475841377,-400.0,0.00032876,8]
[360003504,1746475841387,-400.0,0.00032876,8]
[360003506,1746475841396,-619.58,0.00032876,8]
[360003508,1746475841405,-400.0,0.00032876,8]
[360003510,1746475841415,-400.0,0.00032876,8]
[360003512,1746475841424,-400.0,0.00032876,8]
[360003514,1746475841433,-400.0,0.00032876,8]
[360003516,1746475841442,-400.0,0.00032876,8]
[360003518,1746475841453,-400.0,0.00032876,8]
[360003520,1746475841462,-650.16,0.00032876,8]
[360003522,1746475841471,-699.47,0.00032876,8]
[360003524,1746475841480,-424.11,0.00032876,8]
[360003526,1746475841490,-500.0,0.00032876,8]
[360003528,1746475841501,-453.68,0.00032876,8]
[360003530,1746475841510,-400.0,0.00032876,8]
[360003532,1746475841521,-603.91,0.00032876,8]
[360003534,1746475841531,-582.62,0.00032876,8]
[360003536,1746475841539,-400.0,0.00032876,8]
[360003538,1746475841549,-2332.13,0.00032876,8]
[360003540,1746475841558,-478.23,0.00032876,8]
[360003542,1746475841567,-400.0,0.00032876,8]
[360003544,1746475841577,-452.24,0.00032876,8]
[360003546,1746475841586,-1690.42,0.00032876,8]
[360003548,1746475841595,-400.0,0.00032876,8]
[360003550,1746475841604,-312.4511381,0.00032876,8]
[360003552,1746475841613,-400.0,0.00032876,8]
[360003554,1746475841622,-835.26,0.00032876,8]
[360003556,1746475841632,-644.5,0.00032876,8]
[360003558,1746475841641,-400.0,0.00032876,8]
[360003560,1746475841650,-419.88,0.00032876,8]
[360003562,1746475841661,-400.0,0.00032876,8]
[360003564,1746475841671,-3208.63,0.00032876,8]
[360003566,1746475841680,-400.0,0.00032876,8]
[360003568,1746475841689,-400.0,0.00032876,8]
[360003570,1746475841698,-400.0,0.00032876,8]
[360003572,1746475841708,-684.02,0.00032876,8]
[360003574,1746475841718,-400.0,0.00032876,8]
[360003576,1746475841727,-400.0,0.00032876,8]
[360003578,1746475841736,-400.0,0.00032876,8]
[360003580,1746475841748,-500.0,0.00032876,8]
[360003582,1746475841757,-400.0,0.00032876,8]
[360003584,1746475841771,-500.0,0.00032876,8]
[360003586,1746475841780,-616.14,0.00032876,8]
[360003604,1746475841937,-404.55,0.00032876,8]
[360003606,1746475841947,-414.93719434,0.00032876,8]
[360003608,1746475841957,-400.0,0.00032876,8]
[360003610,1746475841966,-400.0,0.00032876,8]
[360003612,1746475841975,-400.0,0.00032876,8]
[360003614,1746475841985,-400.0,0.00032876,8]
[360003616,1746475841994,-400.0,0.00032876,8]
[360003618,1746475842004,-400.0,0.00032876,8]
[360003620,1746475842013,-400.0,0.00032876,8]
[360003622,1746475842022,-400.0,0.00032876,8]
[360003624,1746475842032,-443.5,0.00032876,8]
[360003626,1746475842042,-400.0,0.00032876,8]
[360003628,1746475842051,-400.0,0.00032876,8]
[360003630,1746475842060,-400.0,0.00032876,8]
[360003632,1746475842070,-400.0,0.00032876,8]
[360003634,1746475842079,-400.0,0.00032876,8]
[360003636,1746475842089,-400.0,0.00032876,8]
[360003638,1746475842099,-400.0,0.00032876,8]
[360003640,1746475842108,-882.52,0.00032876,8]
[360003642,1746475842118,-805.79,0.00032876,8]
[360003644,1746475842128,-400.0,0.00032876,8]
[360003646,1746475842137,-400.0,0.00032876,8]
[360003648,1746475842146,-400.0,0.00032876,8]
[360003650,1746475842155,-400.0,0.00032876,8]
[360003652,1746475842165,-400.0,0.00032876,8]
[360003654,1746475842174,-1242.86,0.00032876,8]
[360003656,1746475842184,-400.0,0.00032876,8]
[360003658,1746475842194,-400.0,0.00032876,8]
[360003660,1746475842203,-518.33,0.00032876,8]
[360003662,1746475842213,-595.41,0.00032876,8]
[360003664,1746475842222,-400.0,0.00032876,8]
[360003666,1746475842231,-850.47,0.00032876,8]
[360003668,1746475842241,-400.0,0.00032876,8]
[360003670,1746475842250,-547.05662584,0.00032876,8]
[360003672,1746475842259,-400.0,0.00032876,8]
[360003674,1746475842268,-1511.34,0.00032876,8]
[360003676,1746475842278,-473.43,0.00032876,8]
[360003678,1746475842287,-921.14,0.00032876,8]
[360003680,1746475842297,-504.71,0.00032876,8]
[360003682,1746475842306,-400.0,0.00032876,8]
[360003684,1746475842315,-400.0,0.00032876,8]
[360003686,1746475842325,-400.0,0.00032876,8]
[360003689,1746475842335,-400.0,0.00032876,8]
[360003691,1746475842344,-400.0,0.00032876,8]
[360003693,1746475842355,-400.0,0.00032876,8]
[360003695,1746475842369,-400.0,0.00032876,8]
[360003697,1746475842379,-843.52,0.00032876,8]
[360003699,1746475842389,-400.0,0.00032876,8]
[360003701,1746475842398,-896.58,0.00032876,8]
[360003703,1746475842407,-400.0,0.00032876,8]
[360003704,1746475842418,-1505.17,0.00032876,8]
[360003707,1746475842427,-400.0,0.00032876,8]
[360003709,1746475842437,-248.84778368,0.00032876,8]
[360003711,1746475842446,-400.0,0.00032876,8]
[360003713,1746475842455,-530.33,0.00032876,8]
[360003715,1746475842465,-400.0,0.00032876,8]
[360003717,1746475842474,-980.9,0.00032876,8]
[360003719,1746475842483,-400.0,0.00032876,8]
[360003721,1746475842493,-468.4,0.00032876,8]
[360003723,1746475842503,-400.0,0.00032876,8]
[360003725,1746475842512,-400.0,0.00032876,8]
[360003727,1746475842522,-400.0,0.00032876,8]
[360003729,1746475842531,-159.58086022,0.00032876,8]
[360003731,1746475842541,-422.8,0.00032876,8]
[360003733,1746475842550,-400.0,0.00032876,8]
[360003735,1746475842560,-3136.42,0.00032876,2]
[360003737,1746475842569,-400.0,0.00032876,8]
[360003738,1746475842579,-400.0,0.00032876,8]
[360003740,1746475842588,-749.47,0.00032876,8]
[360003742,1746475842597,-400.0,0.00032876,8]
[360003744,1746475842607,-470.09135568,0.00032876,8]
[360003746,1746475842616,-400.0,0.00032876,8]
[360003748,1746475842625,-548.69,0.00032876,8]
[360003750,1746475842636,-400.0,0.00032876,8]
[360003752,1746475842646,-400.0,0.00032876,8]
[360003754,1746475842656,-401.78743739,0.00032876,5]
[360003756,1746475842665,-400.0,0.00032876,8]
[360003758,1746475842675,-400.0,0.00032876,8]
[360003760,1746475842685,-441.29,0.00032876,8]
[360003762,1746475842694,-153.55827728,0.00032876,8]
[360003764,1746475842704,-400.0,0.00032876,8]
[360003766,1746475842713,-400.0,0.00032876,8]
[360003768,1746475842723,-400.0,0.00032876,8]
[360003770,1746475842732,-400.0,0.00032876,8]
[360003772,1746475842741,-535.58,0.00032876,8]
[360003774,1746475842751,-1603.07,0.00032876,8]
[360003776,1746475842764,-400.0,0.00032876,8]
[360003778,1746475842776,-580.94,0.00032876,8]
[360003780,1746475842785,-400.97828144,0.00032876,8]
[360003782,1746475842795,-501.93023838,0.00032876,8]
[360003784,1746475842804,-401.67899492,0.00032876,8]
[360003786,1746475842816,-400.0,0.00032876,8]
[360003788,1746475842825,-400.0,0.00032876,8]
[360003790,1746475842835,-400.0,0.00032876,8]